bitfinex-derivatives/quotes_SOLF0:USTF0_20250524
["timestamp","ask_amount","ask_price","bid_price","bid_amount"]
[1748074204622,5.77579295,174.4,174.36,5.7755317]
[1748074205323,0.04319295,174.4,174.36,0.0420317]
[1748074205823,0.04319295,174.4,174.36,5.37257181]
[1748074206121,0.04319295,174.4,174.39,5.7327]
[1748074206330,0.04319295,174.4,174.39,126.6127]
[1748074207828,5.7307,174.46,174.42,5.7316]
[1748074208224,126.6103,174.47,174.43,5.7312]
[1748074208527,126.6103,174.47,174.39,126.21054011]
[1748074208728,126.6103,174.47,174.43,5.7311]
[1748074208924,5.7304,174.46,174.43,5.7311]
[1748074209127,10.58006404,174.54,174.43,0.03912611]
[1748074209430,5.7282,174.53,174.47,0.04239887]
[1748074209629,10.49566404,174.54,174.47,120.90239887]
[1748074210031,10.49566404,174.54,174.47,0.04239887]
[1748074210233,131.35566404,174.54,174.47,0.04239887]
[1748074210933,5.7297,174.48,174.47,0.04239887]
[1748074211721,5.7295,174.49,174.47,0.04239887]
[1748074211927,120.86,174.5,174.47,0.04239887]
[1748074212531,5.7297,174.48,174.47,0.04239887]
[1748074213033,120.86,174.5,174.47,0.04239887]
[1748074213034,120.84,174.56,174.47,0.04239887]
[1748074213433,5.7297,174.49,174.47,0.04239887]
[1748074215330,5.7297,174.48,174.47,0.04239887]
[1748074216535,123.3206,174.57,174.47,0.04239887]
[1748074217035,5.7292,174.5,174.47,0.04239887]
[1748074217535,5.7294,174.49,174.47,0.04239887]
[1748074217935,123.3206,174.57,174.47,0.04239887]
[1748074218136,5.7293,174.5,174.47,0.04239887]
[1748074218638,123.14,174.52,174.47,0.04239887]
[1748074219638,5.7297,174.48,174.47,0.04239887]
[1748074223643,5.7297,174.48,174.47,9.887e-05]
[1748074223943,128.8497,174.48,174.47,9.887e-05]
[1748074225146,134.5897,174.48,174.47,9.887e-05]
[1748074225935,128.8497,174.48,174.47,9.887e-05]
[1748074238460,123.12,174.48,174.37,5.7332]
[1748074239161,5.7322,174.41,174.37,5.7332]
[1748074239354,5.77391615,174.41,174.37,5.77720418]
[1748074240361,0.04171615,174.41,174.37,0.04400418]
[1748074241258,5.733,174.38,174.37,0.04400418]
[1748074244163,5.7328,174.39,174.37,0.04400418]
[1748074245161,128.8925,174.4,174.37,0.04400418]
[1748074245960,123.16,174.4,174.37,0.04400418]
[1748074246963,5.7328,174.39,174.37,0.04400418]
[1748074247763,5.733,174.38,174.37,0.04400418]
[1748074248570,5.7329,174.39,174.37,0.04400418]
[1748074248870,123.16,174.4,174.37,0.04400418]
[1748074249170,5.733,174.38,174.37,0.04400418]
[1748074257072,5.733,174.38,174.37,4.18e-06]
[1748074257277,5.33054011,174.38,174.3,2.009]
[1748074257669,5.33054011,174.38,174.26,121.64]
[1748074257970,114.29054011,174.38,174.26,121.64]
[1748074258170,0.03873755,174.34,174.3,0.03963963]
[1748074258364,5.7353,174.31,174.3,0.03963963]
[1748074259165,5.7353,174.31,174.3,3.963e-05]
[1748074266588,5.737,174.26,174.25,1.9903]
[1748074267874,552.23,174.41,174.25,1.9903]
[1748074268082,121.68,174.38,174.25,1.9903]
[1748074268381,5.7352,174.32,174.27,5.7366]
[1748074268974,0.04111912,174.31,174.28,0.04097569]
[1748074269175,0.03997295,174.31,174.28,0.04032882]
[1748074269485,0.03997295,174.31,174.28,5.77642882]
[1748074269674,0.03997295,174.31,174.28,0.04032882]
[1748074270578,121.7,174.33,174.28,0.04032882]
[1748074271279,5.7356,174.31,174.28,0.04032882]
[1748074271584,0.04025434,174.31,174.28,0.04032882]
[1748074271786,5.7358,174.3,174.28,0.04032882]
[1748074272185,0.04025434,174.31,174.28,0.04032882]
[1748074272383,5.7356,174.3,174.28,0.04032882]
[1748074273878,5.736,174.29,174.28,0.04032882]
[1748074275188,5.7357,174.3,174.28,0.04032882]
[1748074275786,5.736,174.29,174.28,0.04032882]
[1748074276783,128.216,174.29,174.28,0.04032882]
[1748074277787,128.216,174.29,174.28,2.882e-05]
[1748074277981,122.48,174.29,174.21,2.0067]
[1748074278288,122.48,174.29,174.2,1.9041]
[1748074278681,5.7382,174.23,174.2,1.9041]
[1748074279180,0.03773063,174.23,174.2,1.94779716]
[1748074280186,5.77593063,174.23,174.2,1.94779716]
[1748074281386,0.03773063,174.23,174.2,1.94779716]
[1748074283393,0.03773063,174.23,174.2,7.68669716]
[1748074284079,0.03773063,174.23,174.2,1.94779716]
[1748074284588,5.77573063,174.23,174.2,1.94779716]
[1748074284893,0.03773063,174.23,174.2,1.94779716]
[1748074285196,5.7383,174.22,174.2,1.94779716]
[1748074286792,5.7386,174.21,174.2,0.04369716]
[1748074293098,5.7386,174.21,174.2,9.716e-05]
[1748074293302,128.2786,174.21,174.2,9.716e-05]
[1748074305218,5.7406,174.15,174.11,4.0339]
[1748074305714,5.7406,174.15,174.11,9.7756]
[1748074306217,5.7416,174.12,174.11,0.03960896]
[1748074306419,0.03763685,174.15,174.11,0.03960896]
[1748074306609,5.741,174.14,174.11,0.03960896]
[1748074307318,0.03763685,174.15,174.11,0.03960896]
[1748074308117,5.741,174.14,174.11,0.03960896]
[1748074308420,0.03763685,174.15,174.11,0.03960896]
[1748074309117,0.03763685,174.15,174.12,5.7415]
[1748074309621,5.77833685,174.15,174.12,5.7415]
[1748074309814,5.77833685,174.15,174.11,5.78140896]
[1748074309815,0.03763685,174.15,174.11,5.78140896]
[1748074310320,0.03763685,174.15,174.12,5.7415]
[1748074310613,0.03763685,174.15,174.11,0.03960896]
[1748074310818,5.7416,174.12,174.11,0.03960896]
[1748074312921,0.03763685,174.15,174.11,0.03960896]
[1748074313314,5.77843685,174.15,174.12,5.7414]
[1748074313715,0.03763685,174.15,174.12,5.7414]
[1748074314025,5.741,174.14,174.11,5.78140896]
[1748074314223,5.741,174.14,174.11,0.03960896]
[1748074314625,5.77833685,174.15,174.12,5.7415]
[1748074315825,5.741,174.14,174.12,5.7415]
[1748074316523,5.7413,174.13,174.11,5.78130896]
[1748074317025,0.03763685,174.15,174.11,5.78130896]
[1748074317326,5.741,174.14,174.11,5.78130896]
[1748074319930,5.7413,174.13,174.11,5.78130896]
[1748074320426,5.7413,174.13,174.11,0.03960896]
[1748074320828,5.7416,174.12,174.11,0.03960896]
[1748074323622,5.7415,174.13,174.11,0.03960896]
[1748074323834,0.03763685,174.15,174.11,0.03960896]
[1748074324329,0.03763685,174.15,174.13,5.7412]
[1748074324729,5.77823685,174.15,174.12,5.7415]
[1748074325629,0.03763685,174.15,174.12,5.7415]
[1748074327027,0.03763685,174.15,174.11,0.03960896]
[1748074327426,0.03763685,174.15,174.13,5.7411]
[1748074327731,0.03763685,174.15,174.11,0.03960896]
[1748074328025,0.03763685,174.15,174.12,5.7413]
[1748074328227,5.77843685,174.15,174.11,0.03960896]
[1748074328533,0.03763685,174.15,174.13,5.741]
[1748074328828,0.03763685,174.15,174.11,0.03960896]
[1748074329231,0.03763685,174.15,174.13,5.741]
[1748074330429,5.77823685,174.15,174.13,5.741]
[1748074335036,5.741,174.14,174.12,7.7635]
[1748074335336,0.03763685,174.15,174.12,2.0221]
[1748074335634,0.03763685,174.15,174.13,5.7412]
[1748074337233,0.03763685,174.15,174.14,5.7409]
[1748074341338,5.77833685,174.15,174.12,3.9166]
[1748074342429,0.03763685,174.15,174.12,3.9166]
[1748074343132,0.03763685,174.15,174.13,5.7411]
[1748074344444,0.03763685,174.15,174.14,5.7409]
[1748074346244,0.03763685,174.15,174.13,5.7412]
[1748074348445,5.77823685,174.15,174.12,9.6581]
[1748074349145,0.03763685,174.15,174.12,9.6581]
[1748074351150,5.77843685,174.15,174.12,3.9166]
[1748074352250,5.77843685,174.15,174.11,5.78150896]
[1748074352447,0.03763685,174.15,174.11,0.03960896]
[1748074352847,5.7416,174.12,174.11,0.03960896]
[1748074355952,119.1,174.12,174.03,5.34577251]
[1748074356247,5.34500757,174.11,174.03,5.34577251]
[1748074356755,5.744,174.05,174.03,5.34577251]
[1748074356955,0.04347456,174.06,174.03,5.34577251]
[1748074357256,5.7442,174.04,174.03,5.34577251]
[1748074357452,0.04347456,174.06,174.02,0.03699593]
[1748074357657,119.14347456,174.06,174.02,0.03699593]
[1748074357954,5.7445,174.03,174.02,0.03699593]
[1748074365070,119.14347456,174.06,174.02,0.03699593]
[1748074365569,5.744,174.05,174.02,0.03699593]
[1748074366469,5.7443,174.04,174.02,0.03699593]
[1748074367964,5.7445,174.03,174.02,0.03699593]
[1748074369162,119.14347456,174.06,174.02,0.03699593]
[1748074369770,5.7445,174.03,174.02,0.03699593]
[1748074371364,5.7463,173.98,173.93,1.993]
[1748074371571,119.02,174.02,173.93,1.993]
[1748074371765,119.02,174.01,173.93,1.993]
[1748074371962,5.7462,173.99,173.94,5.7473]
[1748074372166,119.02,174.01,173.94,5.7473]
[1748074372468,0.03985658,173.99,173.96,0.03957569]
[1748074372968,0.03985658,173.99,173.96,5.78617569]
[1748074373671,5.78595658,173.99,173.96,5.78617569]
[1748074376370,5.7463,173.98,173.96,5.78617569]
[1748074376872,5.78585658,173.99,173.96,5.78617569]
[1748074378072,5.7463,173.98,173.96,5.78617569]
[1748074378672,5.78585658,173.99,173.96,5.78617569]
[1748074379072,0.03985658,173.99,173.96,5.78617569]
[1748074379374,5.78585658,173.99,173.96,5.78617569]
[1748074379773,0.03985658,173.99,173.96,0.03957569]
[1748074381275,5.7465,173.97,173.96,0.03957569]
[1748074382067,5.7464,173.98,173.96,0.03957569]
[1748074382275,0.03985658,173.99,173.96,0.03957569]
[1748074382473,0.03985658,173.99,173.96,5.78617569]
[1748074382474,5.78585658,173.99,173.96,5.78617569]
[1748074384385,5.7463,173.98,173.96,5.78617569]
[1748074385582,5.78585658,173.99,173.96,5.78617569]
[1748074388382,5.7463,173.98,173.96,5.78617569]
[1748074388583,5.7463,173.98,173.96,0.03957569]
[1748074389083,5.7463,173.98,173.96,5.78627569]
[1748074391785,5.7463,173.98,173.96,0.03957569]
[1748074392788,5.7463,173.98,173.96,5.78637569]
[1748074393092,0.03985658,173.99,173.96,0.03957569]
[1748074393789,5.7464,173.98,173.96,0.03957569]
[1748074394289,5.7464,173.98,173.96,5.78637569]
[1748074394689,5.78585658,173.99,173.96,0.03957569]
[1748074394990,5.78585658,173.99,173.97,5.7465]
[1748074395293,5.78585658,173.99,173.96,0.03957569]
[1748074395586,5.78585658,173.99,173.96,5.78607569]
[1748074395794,5.7463,173.98,173.96,5.78607569]
[1748074396893,5.78595658,173.99,173.96,5.78607569]
[1748074397793,0.03985658,173.99,173.96,0.03957569]
[1748074398390,0.03985658,173.99,173.98,5.7462]
[1748074399089,0.03985658,173.99,173.96,0.03957569]
[1748074399794,5.7465,173.97,173.96,0.03957569]
[1748074401191,5.7463,173.98,173.96,0.03957569]
[1748074401999,0.03985658,173.99,173.96,119.03957569]
[1748074402189,10.49566404,174.06,173.97,2.0443]
[1748074402485,10.49566404,174.06,173.97,8.8794218]
[1748074403091,16.23936404,174.06,174.02,5.7447]
[1748074403398,0.03667419,174.03,174.02,5.7447]
[1748074403695,496.62,174.17,174.02,5.34789775]
[1748074403899,10.59335971,174.11,174.05,5.34789775]
[1748074404095,10.59335971,174.11,174.06,120.9335]
[1748074404594,10.59335971,174.11,174.1,5.7422]
[1748074404795,4.40155971,174.11,174.1,5.7422]
[1748074405097,14.11979998,174.16,174.1,118.98]
[1748074405900,0.04188898,174.15,174.11,0.04109353]
[1748074406195,0.04188898,174.15,174.14,5.7407]
[1748074410305,0.04188898,174.15,174.14,124.6607]
[1748074411003,8.898e-05,174.15,174.14,124.6607]
[1748074413608,5.7385,174.22,174.18,5.7395]
[1748074414713,5.77956596,174.22,174.18,5.77767845]
[1748074415110,5.7388,174.21,174.18,5.77767845]
[1748074415418,0.04106596,174.22,174.18,0.03817845]
[1748074415717,5.7389,174.21,174.18,5.77767845]
[1748074416210,0.04106596,174.22,174.21,5.7386]
[1748074416411,118.88,174.31,174.2,5.34789775]
[1748074416616,118.88,174.31,174.2,9.26589775]
[1748074416811,5.7365,174.28,174.2,9.26589775]
[1748074417009,118.88,174.31,174.2,9.26589775]
[1748074417424,5.7364,174.28,174.24,5.77929699]
[1748074418019,5.7368,174.27,174.24,5.77929699]
[1748074418224,118.88,174.31,174.24,0.04199699]
[1748074419123,5.7367,174.27,174.24,0.04199699]
[1748074419922,118.88,174.31,174.24,0.04199699]
[1748074421127,124.6154,174.31,174.26,5.7367]
[1748074421825,118.88,174.31,174.24,0.04199699]
[1748074422230,118.88,174.31,174.26,5.7369]
[1748074422419,118.88,174.31,174.24,0.04199699]
[1748074423227,5.736,174.29,174.24,0.04199699]
[1748074423427,118.88,174.31,174.24,0.04199699]
[1748074425829,5.7369,174.27,174.24,0.04199699]
[1748074426729,5.737,174.26,174.24,0.04199699]
[1748074434432,5.7373,174.25,174.24,0.04199699]
[1748074443942,118.88,174.31,174.24,0.04199699]
[1748074444331,5.7366,174.28,174.24,0.04199699]
[1748074444540,5.7366,174.28,174.24,5.77949699]
[1748074445540,5.7361,174.29,174.25,5.7373]
[1748074445837,118.88,174.31,174.24,0.04199699]
[1748074446041,5.7364,174.28,174.24,5.77939699]
[1748074446339,118.88,174.31,174.24,0.04199699]
[1748074447142,5.7368,174.27,174.24,0.04199699]
[1748074447639,5.7373,174.25,174.24,0.04199699]
[1748074447939,5.33749396,174.3,174.19,122.44]
[1748074448143,5.7383,174.22,174.19,128.1791]
[1748074448941,5.78201224,174.22,174.19,128.21542158]
[1748074449742,5.78201224,174.22,174.19,122.47632158]
[1748074449743,0.04371224,174.22,174.19,122.47632158]
[1748074450043,0.04371224,174.22,174.19,0.03632158]
[1748074450432,5.7389,174.2,174.19,0.03632158]
[1748074451236,5.7398,174.18,174.15,127.71512208]
[1748074451442,5.33749396,174.24,174.15,122.44]
[1748074451443,3.9314,174.21,174.15,122.44]
[1748074451838,5.7394,174.19,174.15,128.1805]
[1748074452040,5.7394,174.19,174.15,122.44]
[1748074452249,0.03726993,174.19,174.15,122.48352051]
[1748074452544,0.03726993,174.19,174.16,5.7402]
[1748074453751,5.77676993,174.19,174.15,128.22402051]
[1748074454545,5.7397,174.18,174.15,122.48352051]
[1748074455549,5.7397,174.18,174.16,4.98123046]
[1748074456148,5.77666993,174.19,174.16,4.98123046]
[1748074456351,0.03726993,174.19,174.16,4.98123046]
[1748074456542,0.03726993,174.19,174.16,10.72123046]
[1748074457154,0.03726993,174.19,174.15,122.48352051]
[1748074457748,0.03726993,174.19,174.17,5.7397]
[1748074458156,0.03726993,174.19,174.15,122.48352051]
[1748074460256,0.03726993,174.19,174.16,5.7402]
[1748074460453,0.03726993,174.19,174.15,122.48352051]
[1748074460847,5.7397,174.18,174.15,122.48352051]
[1748074461656,5.77666993,174.19,174.15,128.22392051]
[1748074462554,5.7397,174.18,174.15,128.22392051]
[1748074463054,5.7397,174.18,174.15,122.48352051]
[1748074463252,0.03726993,174.19,174.15,122.48352051]
[1748074463756,0.03726993,174.19,174.15,128.22402051]
[1748074464557,0.03726993,174.19,174.15,122.48352051]
[1748074464755,5.7398,174.18,174.15,122.48352051]
[1748074466457,5.7398,174.18,174.15,128.22412051]
[1748074468561,5.77656993,174.19,174.16,5.7402]
[1748074468957,5.77656993,174.19,174.15,122.48352051]
[1748074469254,5.77656993,174.19,174.15,128.22392051]
[1748074470767,0.03726993,174.19,174.15,122.48352051]
[1748074471262,5.77666993,174.19,174.15,128.22382051]
[1748074471449,5.77666993,174.19,174.15,122.48352051]
[1748074472364,5.77666993,174.19,174.16,5.7402]
[1748074473064,5.7397,174.18,174.15,128.22402051]
[1748074476767,5.74,174.17,174.15,122.48352051]
[1748074477673,5.7403,174.16,174.15,122.48352051]
[1748074479970,5.7403,174.16,174.15,0.04352051]
[1748074481070,5.7401,174.17,174.15,0.04352051]
[1748074482779,5.7403,174.16,174.15,0.04352051]
[1748074491380,5.7401,174.17,174.15,0.04352051]
[1748074491685,0.03726993,174.19,174.15,0.04352051]
[1748074492687,5.7403,174.16,174.15,0.04352051]
[1748074496283,0.03726993,174.19,174.15,0.04352051]
[1748074496784,5.7398,174.18,174.15,0.04352051]
[1748074497394,5.77656993,174.19,174.15,0.04352051]
[1748074498286,5.7396,174.18,174.15,5.78402051]
[1748074499191,5.74,174.17,174.15,0.04352051]
[1748074502093,0.03726993,174.19,174.15,0.04352051]
[1748074502794,5.7399,174.18,174.15,5.78392051]
[1748074503190,5.7399,174.18,174.15,0.04352051]
[1748074503497,0.03726993,174.19,174.15,0.04352051]
[1748074503895,5.77676993,174.19,174.16,5.7402]
[1748074506599,5.7396,174.18,174.15,5.78402051]
[1748074506898,0.03726993,174.19,174.15,0.04352051]
[1748074507199,5.7403,174.16,174.15,0.04352051]
[1748074513501,125.0003,174.16,174.15,2.051e-05]
[1748074513694,5.7425,174.1,174.07,5.27512208]
[1748074513895,5.34269925,174.15,174.07,5.27512208]
[1748074514402,3.9663,174.14,174.07,5.27512208]
[1748074514591,0.04376561,174.12,174.09,0.03752521]
[1748074514794,5.7422,174.1,174.09,0.03752521]
[1748074515606,5.7429,174.08,174.07,5.27512208]
[1748074516602,5.7436,174.06,174.01,5.7451]
[1748074516803,0.04071032,174.05,174.02,0.03683062]
[1748074517006,0.03905556,174.05,174.02,0.03683062]
[1748074517503,0.03905556,174.05,174.04,5.7442]
[1748074527403,0.03905556,174.05,174.02,0.03683062]
[1748074527404,5.78295556,174.05,174.02,0.03683062]
[1748074527803,5.78295556,174.05,174.02,5.78153062]
[1748074528310,5.78295556,174.05,174.03,5.7444]
[1748074529211,5.78295556,174.05,174.02,5.78163062]
[1748074529415,0.03905556,174.05,174.02,0.03683062]
[1748074532608,5.7445,174.03,174.02,0.03683062]
[1748074536210,5.7444,174.04,174.02,0.03683062]
[1748074536620,0.03905556,174.05,174.02,0.03683062]
[1748074537718,0.03905556,174.05,174.04,5.7442]
[1748074538913,0.03905556,174.05,174.02,0.03683062]
[1748074539316,5.78305556,174.05,174.02,0.03683062]
[1748074539516,5.78305556,174.05,174.03,5.7445]
[1748074539721,0.03905556,174.05,174.02,0.03683062]
[1748074540519,5.78315556,174.05,174.02,5.78153062]
[1748074541317,5.7443,174.04,174.02,5.78153062]
[1748074543120,5.7443,174.04,174.02,0.03683062]
[1748074543512,0.03905556,174.05,174.02,0.03683062]
[1748074544819,5.7444,174.04,174.02,5.78143062]
[1748074545219,5.7444,174.04,174.02,0.03683062]
[1748074545520,0.03905556,174.05,174.02,0.03683062]
[1748074546110,5.7442,174.04,174.02,0.03683062]
[1748074546618,5.7445,174.03,174.02,0.03683062]
[1748074560330,5.7445,174.03,174.02,3.062e-05]
[1748074563840,5.74,174.03,173.91,124.59512208]
[1748074564151,5.34269925,174.0,173.91,5.27512208]
[1748074564451,125.2271,173.99,173.91,5.27512208]
[1748074564647,5.34269925,173.97,173.91,5.27512208]
[1748074564839,0.03766643,173.96,173.92,0.03905327]
[1748074565040,119.32,173.95,173.92,0.03905327]
[1748074565441,119.32,173.95,173.91,5.27512208]
[1748074566351,119.32,173.95,173.91,5.31778352]
[1748074566352,5.7482,173.92,173.91,5.31778352]
[1748074566543,5.7482,173.92,173.91,0.04266144]
[1748074568349,119.32,173.95,173.91,0.04266144]
[1748074568855,0.03766643,173.96,173.93,5.7477]
[1748074569151,0.03766643,173.96,173.91,0.04266144]
[1748074569547,0.03766643,173.96,173.93,5.7477]
[1748074569742,0.03766643,173.96,173.91,0.04266144]
[1748074570251,0.03766643,173.96,173.93,5.7476]
[1748074570446,0.03766643,173.96,173.91,0.04266144]
[1748074570843,0.03766643,173.96,173.92,119.26]
[1748074571145,0.03766643,173.96,173.95,5.7472]
[1748074572652,0.03766643,173.96,173.93,119.26]
[1748074573555,0.03766643,173.96,173.95,5.7472]
[1748074582648,5.78476643,173.96,173.93,5.7478]
[1748074582851,5.78476643,173.96,173.91,119.28266144]
[1748074583357,5.7472,173.95,173.92,5.7479]
[1748074583559,0.03766643,173.96,173.91,119.28266144]
[1748074584158,5.7476,173.94,173.91,119.28266144]
[1748074585557,0.03766643,173.96,173.91,119.28266144]
[1748074585765,0.03766643,173.96,173.91,0.04266144]
[1748074587563,5.7479,173.93,173.91,0.04266144]
[1748074587751,0.03766643,173.96,173.91,0.04266144]
[1748074588664,5.7482,173.92,173.91,0.04266144]
[1748074589563,119.29766643,173.96,173.91,0.04266144]
[1748074589863,5.7478,173.94,173.91,0.04266144]
[1748074590766,5.748,173.93,173.91,0.04266144]
[1748074590961,119.29766643,173.96,173.91,0.04266144]
[1748074591268,119.29766643,173.96,173.91,5.79116144]
[1748074591562,5.7477,173.94,173.91,5.79116144]
[1748074591963,119.29766643,173.96,173.91,0.04266144]
[1748074592158,5.748,173.93,173.91,0.04266144]
[1748074592568,119.29766643,173.96,173.91,0.04266144]
[1748074592865,5.7482,173.92,173.91,0.04266144]
[1748074597564,5.7482,173.92,173.91,6.144e-05]
[1748074597770,125.0282,173.92,173.91,6.144e-05]
[1748074598467,125.02,173.92,173.8,119.28]
[1748074598670,5.35488631,173.89,173.79,11.02742208]
[1748074598965,5.7515,173.82,173.79,5.27512208]
[1748074599170,5.7515,173.82,173.77,115.38902208]
[1748074599368,0.03758365,173.81,173.78,0.04062749]
[1748074599572,0.04172167,173.81,173.78,0.04062749]
[1748074599970,5.7525,173.79,173.78,0.04062749]
[1748074600967,124.9525,173.79,173.78,0.04062749]
[1748074601270,119.2,173.79,173.7,119.2]
[1748074601672,5.7537,173.76,173.7,119.2]
[1748074602171,0.04305701,173.75,173.71,5.79910996]
[1748074602468,5.79685701,173.75,173.71,5.79910996]
[1748074602780,0.04305701,173.75,173.72,5.7545]
[1748074603070,0.04305701,173.75,173.71,0.04420996]
[1748074603273,0.04305701,173.75,173.73,5.7543]
[1748074603566,0.04305701,173.75,173.71,0.04420996]
[1748074603771,0.04305701,173.75,173.73,5.7542]
[1748074603972,0.04305701,173.75,173.71,0.04420996]
[1748074604468,0.04305701,173.75,173.74,5.7541]
[1748074605565,0.04305701,173.75,173.71,0.04420996]
[1748074606673,5.7548,173.72,173.71,0.04420996]
[1748074610278,5.7547,173.73,173.71,0.04420996]
[1748074610571,0.04305701,173.75,173.71,0.04420996]
[1748074612173,5.7547,173.73,173.71,0.04420996]
[1748074613177,5.7542,173.74,173.71,0.04420996]
[1748074613568,0.04305701,173.75,173.71,0.04420996]
[1748074613769,5.7544,173.74,173.71,0.04420996]
[1748074614272,0.04305701,173.75,173.71,0.04420996]
[1748074614672,0.04305701,173.75,173.71,2.03300996]
[1748074615176,0.04305701,173.75,173.74,5.7541]
[1748074618077,0.04305701,173.75,173.74,125.0741]
[1748074620476,5.701e-05,173.75,173.74,130.8341]
[1748074620669,5.701e-05,173.75,173.74,136.18898631]
[1748074620876,5.7506,173.85,173.74,130.43488631]
[1748074621077,1.8726,173.89,173.74,156.67488631]
[1748074621267,5.7504,173.86,173.83,5.7509]
[1748074621675,1.8726,173.89,173.8,119.3]
[1748074621874,0.03889701,173.86,173.84,5.7508]
[1748074622079,0.03889701,173.86,173.83,0.04080151]
[1748074623682,5.7508,173.85,173.83,0.04080151]
[1748074624279,0.03889701,173.86,173.83,0.04080151]
[1748074624780,0.03889701,173.86,173.84,5.7506]
[1748074624975,0.03889701,173.86,173.83,0.04080151]
[1748074625381,5.7507,173.85,173.83,0.04080151]
[1748074625783,0.03889701,173.86,173.83,0.04080151]
[1748074626175,5.7508,173.84,173.83,0.04080151]
[1748074627880,0.03889701,173.86,173.83,0.04080151]
[1748074628573,0.03889701,173.86,173.83,5.79170151]
[1748074629184,0.03889701,173.86,173.84,5.7508]
[1748074630881,0.03889701,173.86,173.85,5.7505]
[1748074631580,1.9901,173.93,173.89,5.749]
[1748074631776,1.9901,173.93,173.84,119.2]
[1748074631973,7.7381,173.93,173.84,119.2]
[1748074632179,1.9901,173.93,173.89,5.7489]
[1748074632376,1.9901,173.93,173.84,119.2]
[1748074632577,7.7381,173.93,173.84,119.2]
[1748074632786,0.04324792,173.9,173.89,5.7492]
[1748074634480,0.04324792,173.9,173.87,0.03917848]
[1748074634781,5.7495,173.88,173.87,0.03917848]
[1748074635186,5.7492,173.89,173.87,0.03917848]
[1748074635379,0.04324792,173.9,173.87,0.03917848]
[1748074636680,5.7495,173.88,173.87,0.03917848]
[1748074644882,5.7495,173.88,173.78,119.18]
[1748074644883,5.7521,173.81,173.78,119.18]
[1748074645875,5.7521,173.81,173.78,124.9328]
[1748074646180,0.0438764,173.81,173.78,124.97349652]
[1748074646688,0.0438764,173.81,173.78,119.22069652]
[1748074647187,0.0438764,173.81,173.8,5.7521]
[1748074648388,0.0438764,173.81,173.79,5.7523]
[1748074648994,0.0438764,173.81,173.8,5.7521]
[1748074654493,0.0438764,173.81,173.79,5.7524]
[1748074655589,0.0438764,173.81,173.8,5.7521]
[1748074656792,0.0438764,173.81,173.78,119.22069652]
[1748074657394,0.0438764,173.81,173.78,124.97319652]
[1748074657692,0.0438764,173.81,173.78,5.79319652]
[1748074657893,5.7956764,173.81,173.78,0.04069652]
[1748074658396,5.7956764,173.81,173.78,5.79319652]
[1748074658800,5.7522,173.8,173.78,5.79319652]
[1748074661305,5.7525,173.79,173.78,0.04069652]
[1748074661707,4.0642,173.8,173.76,4.85851274]
[1748074662400,4.0642,173.8,173.72,11.12212304]
[1748074662704,4.0642,173.8,173.74,0.04094078]
[1748074663614,5.7533,173.77,173.74,0.04094078]
[1748074663810,0.03710307,173.77,173.74,0.04094078]
[1748074664516,5.7537,173.76,173.74,0.04094078]
[1748074666416,5.7538,173.75,173.74,0.04094078]
[1748074669918,5.7536,173.76,173.74,0.04094078]
[1748074670419,0.03710307,173.77,173.74,0.04094078]
[1748074670917,5.7538,173.75,173.74,0.04094078]
[1748074673218,0.03710307,173.77,173.75,5.7537]
[1748074676216,0.03710307,173.77,173.74,5.79494078]
[1748074676821,0.03710307,173.77,173.75,5.7537]
[1748074677325,5.79030307,173.77,173.74,0.04094078]
[1748074677626,5.79030307,173.77,173.74,5.79484078]
[1748074678420,0.03710307,173.77,173.75,5.7536]
[1748074680227,0.03710307,173.77,173.76,5.7535]
[1748074680526,5.7513,173.83,173.75,119.18]
[1748074680724,119.18,173.86,173.81,5.7516]
[1748074681226,119.18,173.86,173.75,119.18]
[1748074681421,0.03670867,173.82,173.79,0.03713662]
[1748074681921,3.9726,173.91,173.86,5.7501]
[1748074682224,5.748,173.93,173.84,119.18]
[1748074682430,129.77751657,173.95,173.89,5.749]
[1748074682620,129.77751657,173.95,173.85,119.18]
[1748074682821,5.7481,173.93,173.85,119.18]
[1748074683127,0.0393183,173.91,173.87,0.03945126]
[1748074683728,0.0393183,173.91,173.9,5.7486]
[1748074686326,1.9659,173.99,173.94,5.7473]
[1748074686632,119.12,174.01,173.94,5.7473]
[1748074687531,0.04111639,173.99,173.96,0.04005156]
[1748074687935,5.7465,173.97,173.96,0.04005156]
[1748074689436,5.7481,173.93,173.89,124.9091]